[Event "Titled Tuesday Blitz August 16 Early 2022"]
[White "Rosenberg, Evan S"]
[Black "Sorkin, Igor"]
[WhiteFideId "2019299"]
[BlackFideId "2803283"]
[WhiteElo "1999"]
[BlackElo "2401"]
[Result "1/2-1/2"]
[Round "01"]
[TimeControl "180+2"]
[Date "2022.08.18"]
[WhiteClock "0:00:00"]
[BlackClock "0:00:00"]

1. e4 {[%clk 0:00:00]}  c5 {[%clk 0:00:00]} 2. Nc3 {[%clk 0:00:00]}  e6 {[%clk 0:00:00]} 3. Nge2 {[%clk 0:00:00]}  a6 {[%clk 0:00:00]} 4. g3 {[%clk 0:00:00]}  b5 {[%clk 0:00:00]} 5. Bg2 {[%clk 0:00:00]}  Bb7 {[%clk 0:00:00]} 6. O-O {[%clk 0:00:00]}  d6 {[%clk 0:00:00]} 7. Re1 {[%clk 0:00:00]}  Be7 {[%clk 0:00:00]} 8. d3 {[%clk 0:00:00]}  Nf6 {[%clk 0:00:00]} 9. e5 {[%clk 0:00:00]}  Nd5 {[%clk 0:00:00]} 10. Nxd5 {[%clk 0:00:00]}  exd5 {[%clk 0:00:00]} 11. exd6 {[%clk 0:00:00]}  Qxd6 {[%clk 0:00:00]} 12. d4 {[%clk 0:00:00]}  O-O {[%clk 0:00:00]} 13. dxc5 {[%clk 0:00:00]}  Qxc5 {[%clk 0:00:00]} 14. Nd4 {[%clk 0:00:00]}  Bf6 {[%clk 0:00:00]} 15. c3 {[%clk 0:00:00]}  Nc6 {[%clk 0:00:00]} 16. Be3 {[%clk 0:00:00]}  Nxd4 {[%clk 0:00:00]} 17. Bxd4 {[%clk 0:00:00]}  Bxd4 {[%clk 0:00:00]} 18. cxd4 {[%clk 0:00:00]}  Qd6 {[%clk 0:00:00]} 19. a3 {[%clk 0:00:00]}  Rac8 {[%clk 0:00:00]} 20. Rc1 {[%clk 0:00:00]}  Rc4 {[%clk 0:00:00]} 21. Bf1 {[%clk 0:00:00]}  Rd8 {[%clk 0:00:00]} 22. Qd2 {[%clk 0:00:00]}  Qf6 {[%clk 0:00:00]} 23. Re5 {[%clk 0:00:00]}  h6 {[%clk 0:00:00]} 24. b3 {[%clk 0:00:00]}  Rxc1 {[%clk 0:00:00]} 25. Qxc1 {[%clk 0:00:00]}  Rc8 {[%clk 0:00:00]} 26. Qe3 {[%clk 0:00:00]}  g6 {[%clk 0:00:00]} 27. Re7 {[%clk 0:00:00]}  Bc6 {[%clk 0:00:00]} 28. Bh3 {[%clk 0:00:00]}  Rd8 {[%clk 0:00:00]} 29. Re5 {[%clk 0:00:00]}  Kg7 {[%clk 0:00:00]} 30. Bg2 {[%clk 0:00:00]} 1/2-1/2


[Site "https://www.chess.com"]

[Event "Titled Tuesday Blitz August 16 Early 2022"]
[White "Rustemov, Alexander"]
[Black "Pastar, Slaven"]
[WhiteFideId "4119002"]
[BlackFideId "14402718"]
[WhiteElo "2809"]
[BlackElo "2248"]
[Result "0-1"]
[Round "01"]
[TimeControl "180+1"]
[Date "2022.08.16"]
[WhiteClock "0:00:04"]
[BlackClock "0:00:10"]

1. d4 {[%clk 0:03:00]}  b6 {[%clk 0:02:56]} 2. e4 {[%clk 0:02:59]}  Bb7 {[%clk 0:02:56]} 3. Bd3 {[%clk 0:02:59]}  Nf6 {[%clk 0:02:54]} 4. Qe2 {[%clk 0:02:58]}  e6 {[%clk 0:02:54]} 5. Nf3 {[%clk 0:02:57]}  d5 {[%clk 0:02:55]} 6. e5 {[%clk 0:02:55]}  Ne4 {[%clk 0:02:55]} 7. Nbd2 {[%clk 0:02:54]}  Nxd2 {[%clk 0:02:55]} 8. Bxd2 {[%clk 0:02:54]}  c5 {[%clk 0:02:56]} 9. c3 {[%clk 0:02:53]}  a5 {[%clk 0:02:56]} 10. O-O {[%clk 0:02:48]}  Be7 {[%clk 0:02:55]} 11. Ne1 {[%clk 0:02:35]}  Ba6 {[%clk 0:02:54]} 12. f4 {[%clk 0:02:34]}  g6 {[%clk 0:02:51]} 13. g4 {[%clk 0:02:32]}  Qd7 {[%clk 0:02:31]} 14. f5 {[%clk 0:02:30]}  gxf5 {[%clk 0:02:30]} 15. gxf5 {[%clk 0:02:30]}  exf5 {[%clk 0:02:29]} 16. Qh5 {[%clk 0:02:21]}  Bxd3 {[%clk 0:02:20]} 17. Nxd3 {[%clk 0:02:21]}  Nc6 {[%clk 0:02:12]} 18. Be3 {[%clk 0:02:20]}  c4 {[%clk 0:01:09]} 19. Nf4 {[%clk 0:02:18]}  O-O-O {[%clk 0:00:54]} 20. Qxf7 {[%clk 0:02:15]}  Rhf8 {[%clk 0:00:44]} 21. Qh5 {[%clk 0:02:05]}  Rg8+ {[%clk 0:00:40]} 22. Kh1 {[%clk 0:02:05]}  Bg5 {[%clk 0:00:39]} 23. Rf3 {[%clk 0:02:01]}  Rdf8 {[%clk 0:00:36]} 24. Raf1 {[%clk 0:02:00]}  Nd8 {[%clk 0:00:30]} 25. Ng2 {[%clk 0:01:47]}  h6 {[%clk 0:00:29]} 26. h4 {[%clk 0:01:37]}  Bxe3 {[%clk 0:00:28]} 27. Nxe3 {[%clk 0:01:37]}  f4 {[%clk 0:00:28]} 28. Ng2 {[%clk 0:01:32]}  Qg7 {[%clk 0:00:20]} 29. R1f2 {[%clk 0:01:14]}  Ne6 {[%clk 0:00:20]} 30. a4 {[%clk 0:01:08]}  Kd7 {[%clk 0:00:20]} 31. Kg1 {[%clk 0:01:06]}  Rf7 {[%clk 0:00:15]} 32. Kf1 {[%clk 0:01:06]}  Rgf8 {[%clk 0:00:15]} 33. Ne1 {[%clk 0:00:59]}  Rf5 {[%clk 0:00:15]} 34. Rg2 {[%clk 0:00:21]}  Rxh5 {[%clk 0:00:15]} 35. Rxg7+ {[%clk 0:00:20]}  Nxg7 {[%clk 0:00:15]} 36. Ng2 {[%clk 0:00:20]}  Nf5 {[%clk 0:00:15]} 37. Kf2 {[%clk 0:00:15]}  Nxh4 {[%clk 0:00:10]} 38. Rh3 {[%clk 0:00:15]}  Nxg2 {[%clk 0:00:06]} 39. Rxh5 {[%clk 0:00:15]}  Ne3 {[%clk 0:00:06]} 40. Kf3 {[%clk 0:00:14]}  Nd1 {[%clk 0:00:06]} 41. Rxh6 {[%clk 0:00:13]}  Nxb2 {[%clk 0:00:06]} 42. Rh7+ {[%clk 0:00:11]}  Kc8 {[%clk 0:00:05]} 43. Rh6 {[%clk 0:00:10]}  Nxa4 {[%clk 0:00:05]} 44. e6 {[%clk 0:00:10]}  Nxc3 {[%clk 0:00:05]} 45. Kg4 {[%clk 0:00:06]}  f3 {[%clk 0:00:05]} 46. Rh7 {[%clk 0:00:06]}  f2 {[%clk 0:00:04]} 47. e7 {[%clk 0:00:02]}  f1=Q {[%clk 0:00:04]} 48. exf8=Q+ {[%clk 0:00:02]}  Qxf8 {[%clk 0:00:05]} 49. Rh5 {[%clk 0:00:02]}  Ne4 {[%clk 0:00:05]} 50. Rf5 {[%clk 0:00:02]}  Qg8+ {[%clk 0:00:05]} 51. Kf4 {[%clk 0:00:02]}  Qe6 {[%clk 0:00:06]} 52. Re5 {[%clk 0:00:02]}  Kd7 {[%clk 0:00:05]} 53. Rxe6 {[%clk 0:00:02]}  Kxe6 {[%clk 0:00:06]} 54. Ke3 {[%clk 0:00:03]}  a4 {[%clk 0:00:07]} 55. Ke2 {[%clk 0:00:03]}  a3 {[%clk 0:00:08]} 56. Kd1 {[%clk 0:00:04]}  a2 {[%clk 0:00:09]} 57. Ke2 {[%clk 0:00:04]}  a1=Q {[%clk 0:00:10]} 0-1


[Site "https://www.chess.com"]

[Event "Titled Tuesday Blitz August 16 Early 2022"]
[White "Sanchez, Robert"]
[Black "Tasev, Dejan"]
[WhiteFideId "2034360"]
[BlackFideId "936618"]
[WhiteElo "1966"]
[BlackElo "2253"]
[Result "0-1"]
[Round "01"]
[TimeControl "180+2"]
[Date "2022.08.18"]
[WhiteClock "0:00:00"]
[BlackClock "0:00:00"]

1. Nf3 {[%clk 0:00:00]}  Nf6 {[%clk 0:00:00]} 2. e3 {[%clk 0:00:00]}  g6 {[%clk 0:00:00]} 3. c4 {[%clk 0:00:00]}  Bg7 {[%clk 0:00:00]} 4. Nc3 {[%clk 0:00:00]}  O-O {[%clk 0:00:00]} 5. b3 {[%clk 0:00:00]}  b6 {[%clk 0:00:00]} 6. Bb2 {[%clk 0:00:00]}  Bb7 {[%clk 0:00:00]} 7. Be2 {[%clk 0:00:00]}  e6 {[%clk 0:00:00]} 8. O-O {[%clk 0:00:00]}  d5 {[%clk 0:00:00]} 9. d4 {[%clk 0:00:00]}  c6 {[%clk 0:00:00]} 10. Ne5 {[%clk 0:00:00]}  Nbd7 {[%clk 0:00:00]} 11. f4 {[%clk 0:00:00]}  Nxe5 {[%clk 0:00:00]} 12. fxe5 {[%clk 0:00:00]}  Nd7 {[%clk 0:00:00]} 13. Rc1 {[%clk 0:00:00]}  f6 {[%clk 0:00:00]} 14. Bg4 {[%clk 0:00:00]}  Qe7 {[%clk 0:00:00]} 15. exf6 {[%clk 0:00:00]}  Nxf6 {[%clk 0:00:00]} 16. Bh3 {[%clk 0:00:00]}  dxc4 {[%clk 0:00:00]} 17. bxc4 {[%clk 0:00:00]}  Rad8 {[%clk 0:00:00]} 18. Qe2 {[%clk 0:00:00]}  c5 {[%clk 0:00:00]} 19. Rcd1 {[%clk 0:00:00]}  h6 {[%clk 0:00:00]} 20. Ba3 {[%clk 0:00:00]}  g5 {[%clk 0:00:00]} 21. dxc5 {[%clk 0:00:00]}  bxc5 {[%clk 0:00:00]} 22. Na4 {[%clk 0:00:00]}  Ne4 {[%clk 0:00:00]} 23. Qg4 {[%clk 0:00:00]}  Rxd1 {[%clk 0:00:00]} 24. Rxd1 {[%clk 0:00:00]}  Rf6 {[%clk 0:00:00]} 25. Bb2 {[%clk 0:00:00]}  Rg6 {[%clk 0:00:00]} 26. Bxg7 {[%clk 0:00:00]}  Kxg7 {[%clk 0:00:00]} 27. Qe2 {[%clk 0:00:00]}  Rf6 {[%clk 0:00:00]} 28. Bg4 {[%clk 0:00:00]}  Nf2 {[%clk 0:00:00]} 29. Rd2 {[%clk 0:00:00]}  Qf7 {[%clk 0:00:00]} 30. Bh5 {[%clk 0:00:00]}  Qc7 {[%clk 0:00:00]} 31. h3 {[%clk 0:00:00]}  Nxh3+ {[%clk 0:00:00]} 32. Kh1 {[%clk 0:00:00]}  Qg3 {[%clk 0:00:00]} 33. Rd7+ {[%clk 0:00:00]}  Kh8 {[%clk 0:00:00]} 34. Rxb7 {[%clk 0:00:00]}  Nf2+ {[%clk 0:00:00]} 35. Kg1 {[%clk 0:00:00]}  Nh3+ {[%clk 0:00:00]} 36. Kh1 {[%clk 0:00:00]}  Rf2 {[%clk 0:00:00]} 37. Rb8+ {[%clk 0:00:00]}  Qxb8 {[%clk 0:00:00]} 38. Qd1 {[%clk 0:00:00]}  Rf8 {[%clk 0:00:00]} 39. Qa1+ {[%clk 0:00:00]}  Kg8 {[%clk 0:00:00]} 40. Bg4 {[%clk 0:00:00]}  Nf2+ {[%clk 0:00:00]} 41. Kg1 {[%clk 0:00:00]}  Nxg4 {[%clk 0:00:00]} 0-1


[Site "https://www.chess.com"]

[Event "Titled Tuesday Blitz August 16 Early 2022"]
[White "Sargissyan, Sargis"]
[Black "Bykhovsky, Anatoly"]
[WhiteFideId "13303210"]
[BlackFideId "2806991"]
[WhiteElo "2102"]
[BlackElo "2540"]
[Result "0-1"]
[Round "01"]
[TimeControl "180+2"]
[Date "2022.08.18"]
[WhiteClock "0:00:00"]
[BlackClock "0:00:00"]

1. e4 {[%clk 0:00:00]}  c5 {[%clk 0:00:00]} 2. Nf3 {[%clk 0:00:00]}  d6 {[%clk 0:00:00]} 3. d4 {[%clk 0:00:00]}  cxd4 {[%clk 0:00:00]} 4. Nxd4 {[%clk 0:00:00]}  Nf6 {[%clk 0:00:00]} 5. Nc3 {[%clk 0:00:00]}  Nc6 {[%clk 0:00:00]} 6. Bg5 {[%clk 0:00:00]}  e6 {[%clk 0:00:00]} 7. Qd2 {[%clk 0:00:00]}  a6 {[%clk 0:00:00]} 8. O-O-O {[%clk 0:00:00]}  Nxd4 {[%clk 0:00:00]} 9. Qxd4 {[%clk 0:00:00]}  Be7 {[%clk 0:00:00]} 10. Kb1 {[%clk 0:00:00]}  b5 {[%clk 0:00:00]} 11. f3 {[%clk 0:00:00]}  Bb7 {[%clk 0:00:00]} 12. h4 {[%clk 0:00:00]}  O-O {[%clk 0:00:00]} 13. h5 {[%clk 0:00:00]}  h6 {[%clk 0:00:00]} 14. Be3 {[%clk 0:00:00]}  Rc8 {[%clk 0:00:00]} 15. g4 {[%clk 0:00:00]}  Nd7 {[%clk 0:00:00]} 16. Rg1 {[%clk 0:00:00]}  Ne5 {[%clk 0:00:00]} 17. Be2 {[%clk 0:00:00]}  Nc4 {[%clk 0:00:00]} 18. Bxc4 {[%clk 0:00:00]}  Rxc4 {[%clk 0:00:00]} 19. Qd2 {[%clk 0:00:00]}  b4 {[%clk 0:00:00]} 20. Ne2 {[%clk 0:00:00]}  a5 {[%clk 0:00:00]} 21. g5 {[%clk 0:00:00]}  hxg5 {[%clk 0:00:00]} 22. Bxg5 {[%clk 0:00:00]}  Bxg5 {[%clk 0:00:00]} 23. Rxg5 {[%clk 0:00:00]}  Kh7 {[%clk 0:00:00]} 24. Rdg1 {[%clk 0:00:00]}  Rg8 {[%clk 0:00:00]} 25. Nf4 {[%clk 0:00:00]}  Rc5 {[%clk 0:00:00]} 26. R5g4 {[%clk 0:00:00]}  a4 {[%clk 0:00:00]} 27. Qxb4 {[%clk 0:00:00]}  Qc7 {[%clk 0:00:00]} 28. R1g2 {[%clk 0:00:00]}  d5 {[%clk 0:00:00]} 29. exd5 {[%clk 0:00:00]}  Bxd5 {[%clk 0:00:00]} 30. Nxd5 {[%clk 0:00:00]}  Rxd5 {[%clk 0:00:00]} 31. Rg1 {[%clk 0:00:00]}  Qd7 {[%clk 0:00:00]} 32. Qe1 {[%clk 0:00:00]}  Rxh5 {[%clk 0:00:00]} 33. R4g2 {[%clk 0:00:00]}  g6 {[%clk 0:00:00]} 34. Rh1 {[%clk 0:00:00]}  Rxh1 {[%clk 0:00:00]} 35. Qxh1+ {[%clk 0:00:00]}  Kg7 {[%clk 0:00:00]} 36. Rh2 {[%clk 0:00:00]}  Qd5 {[%clk 0:00:00]} 37. Rh7+ {[%clk 0:00:00]}  Kf6 {[%clk 0:00:00]} 38. a3 {[%clk 0:00:00]}  Rd8 {[%clk 0:00:00]} 39. Qh4+ {[%clk 0:00:00]}  g5 {[%clk 0:00:00]} 40. Qh6+ {[%clk 0:00:00]}  Ke7 {[%clk 0:00:00]} 41. Qg7 {[%clk 0:00:00]}  Qf5 {[%clk 0:00:00]} 42. Qc3 {[%clk 0:00:00]}  Rd1+ {[%clk 0:00:00]} 43. Ka2 {[%clk 0:00:00]}  Qxh7 {[%clk 0:00:00]} 44. Qb4+ {[%clk 0:00:00]}  Rd6 {[%clk 0:00:00]} 45. Qxa4 {[%clk 0:00:00]}  Qf5 {[%clk 0:00:00]} 46. Qa8 {[%clk 0:00:00]}  Qd5+ {[%clk 0:00:00]} 47. b3 {[%clk 0:00:00]}  Qxa8 {[%clk 0:00:00]} 0-1


[Site "https://www.chess.com"]

[Event "Titled Tuesday Blitz August 16 Early 2022"]
[White "Saveliev, Alexei"]
[Black "Lazavik, Denis"]
[WhiteFideId "24128546"]
[BlackFideId "13515110"]
[WhiteElo "2281"]
[BlackElo "2437"]
[Result "0-1"]
[Round "01"]
[TimeControl "180+1"]
[Date "2022.08.16"]
[WhiteClock "0:00:21"]
[BlackClock "0:01:06"]

1. c4 {[%clk 0:02:58]}  f5 {[%clk 0:02:59]} 2. d4 {[%clk 0:02:57]}  Nf6 {[%clk 0:02:59]} 3. g3 {[%clk 0:02:56]}  g6 {[%clk 0:02:59]} 4. Bg2 {[%clk 0:02:57]}  Bg7 {[%clk 0:03:00]} 5. Nf3 {[%clk 0:02:58]}  O-O {[%clk 0:03:01]} 6. O-O {[%clk 0:02:58]}  d6 {[%clk 0:03:01]} 7. Nc3 {[%clk 0:02:58]}  c6 {[%clk 0:03:00]} 8. b3 {[%clk 0:02:46]}  Qc7 {[%clk 0:03:00]} 9. Bb2 {[%clk 0:02:44]}  e5 {[%clk 0:02:59]} 10. d5 {[%clk 0:02:40]}  Na6 {[%clk 0:02:53]} 11. Rc1 {[%clk 0:02:39]}  Qe7 {[%clk 0:02:44]} 12. Qd2 {[%clk 0:02:19]}  Nc5 {[%clk 0:02:36]} 13. Rfd1 {[%clk 0:02:16]}  Nce4 {[%clk 0:02:34]} 14. Qc2 {[%clk 0:02:14]}  Nxc3 {[%clk 0:02:33]} 15. Bxc3 {[%clk 0:02:14]}  c5 {[%clk 0:02:33]} 16. e3 {[%clk 0:02:11]}  h6 {[%clk 0:02:31]} 17. a3 {[%clk 0:02:02]}  g5 {[%clk 0:02:30]} 18. b4 {[%clk 0:02:01]}  b6 {[%clk 0:02:31]} 19. b5 {[%clk 0:01:54]}  Bd7 {[%clk 0:02:28]} 20. a4 {[%clk 0:01:54]}  Rae8 {[%clk 0:02:27]} 21. a5 {[%clk 0:01:53]}  Qf7 {[%clk 0:02:27]} 22. axb6 {[%clk 0:01:48]}  axb6 {[%clk 0:02:28]} 23. Ra1 {[%clk 0:01:49]}  Bc8 {[%clk 0:02:24]} 24. Ra8 {[%clk 0:01:46]}  Qh5 {[%clk 0:02:23]} 25. Rxc8 {[%clk 0:01:37]}  Rxc8 {[%clk 0:02:22]} 26. Qxf5 {[%clk 0:01:37]}  Rce8 {[%clk 0:02:12]} 27. Qc2 {[%clk 0:01:32]}  e4 {[%clk 0:01:46]} 28. Bxf6 {[%clk 0:01:18]}  Rxf6 {[%clk 0:01:34]} 29. Nd2 {[%clk 0:01:17]}  Qe2 {[%clk 0:01:33]} 30. Rf1 {[%clk 0:01:13]}  Ref8 {[%clk 0:01:31]} 31. Qd1 {[%clk 0:01:04]}  Rxf2 {[%clk 0:01:26]} 32. Qxe2 {[%clk 0:01:02]}  Rxe2 {[%clk 0:01:26]} 33. Nxe4 {[%clk 0:00:58]}  Be5 {[%clk 0:01:24]} 34. Rc1 {[%clk 0:00:40]}  Rxe3 {[%clk 0:01:22]} 35. Kh1 {[%clk 0:00:37]}  g4 {[%clk 0:01:20]} 36. Rd1 {[%clk 0:00:33]}  Kg7 {[%clk 0:01:17]} 37. Rc1 {[%clk 0:00:33]}  Kg6 {[%clk 0:01:15]} 38. Rd1 {[%clk 0:00:33]}  h5 {[%clk 0:01:14]} 39. Rc1 {[%clk 0:00:29]}  Rh8 {[%clk 0:01:13]} 40. Rf1 {[%clk 0:00:28]}  h4 {[%clk 0:01:13]} 41. gxh4 {[%clk 0:00:29]}  Rxh4 {[%clk 0:01:12]} 42. Kg1 {[%clk 0:00:28]}  Rxh2 {[%clk 0:01:06]} 43. Nf6 {[%clk 0:00:24]}  Rxg2+ {[%clk 0:01:05]} 44. Kxg2 {[%clk 0:00:24]}  Bxf6 {[%clk 0:01:06]} 45. Rh1 {[%clk 0:00:21]} 0-1


[Site "https://www.chess.com"]

[Event "Titled Tuesday Blitz August 16 Early 2022"]
[White "Shohat, Yotam"]
[Black "Cramling Bellon, Anna"]
[WhiteFideId "2813955"]
[BlackFideId "32009232"]
[WhiteElo "2119"]
[BlackElo "1905"]
[Result "1-0"]
[Round "01"]
[TimeControl "180+2"]
[Date "2022.08.18"]
[WhiteClock "0:00:00"]
[BlackClock "0:00:00"]

1. e4 {[%clk 0:00:00]}  c5 {[%clk 0:00:00]} 2. Nf3 {[%clk 0:00:00]}  e6 {[%clk 0:00:00]} 3. g3 {[%clk 0:00:00]}  Nc6 {[%clk 0:00:00]} 4. Bg2 {[%clk 0:00:00]}  d5 {[%clk 0:00:00]} 5. exd5 {[%clk 0:00:00]}  exd5 {[%clk 0:00:00]} 6. d4 {[%clk 0:00:00]}  Nf6 {[%clk 0:00:00]} 7. O-O {[%clk 0:00:00]}  Be6 {[%clk 0:00:00]} 8. Nc3 {[%clk 0:00:00]}  Be7 {[%clk 0:00:00]} 9. dxc5 {[%clk 0:00:00]}  Bxc5 {[%clk 0:00:00]} 10. Na4 {[%clk 0:00:00]}  Be7 {[%clk 0:00:00]} 11. Be3 {[%clk 0:00:00]}  O-O {[%clk 0:00:00]} 12. Bc5 {[%clk 0:00:00]}  Bxc5 {[%clk 0:00:00]} 13. Nxc5 {[%clk 0:00:00]}  Qb6 {[%clk 0:00:00]} 14. Nb3 {[%clk 0:00:00]}  Bg4 {[%clk 0:00:00]} 15. h3 {[%clk 0:00:00]}  Bh5 {[%clk 0:00:00]} 16. c3 {[%clk 0:00:00]}  Rad8 {[%clk 0:00:00]} 17. g4 {[%clk 0:00:00]}  Bg6 {[%clk 0:00:00]} 18. Nfd4 {[%clk 0:00:00]}  Ne5 {[%clk 0:00:00]} 19. f4 {[%clk 0:00:00]}  Nc4 {[%clk 0:00:00]} 20. f5 {[%clk 0:00:00]}  Ne3 {[%clk 0:00:00]} 21. Qd3 {[%clk 0:00:00]}  Nxf1 {[%clk 0:00:00]} 22. Rxf1 {[%clk 0:00:00]}  Rfe8 {[%clk 0:00:00]} 23. fxg6 {[%clk 0:00:00]}  hxg6 {[%clk 0:00:00]} 24. Rf4 {[%clk 0:00:00]}  g5 {[%clk 0:00:00]} 25. Rf1 {[%clk 0:00:00]}  Ne4 {[%clk 0:00:00]} 26. Bxe4 {[%clk 0:00:00]}  dxe4 {[%clk 0:00:00]} 27. Qe3 {[%clk 0:00:00]}  Qg6 {[%clk 0:00:00]} 28. Rf5 {[%clk 0:00:00]}  f6 {[%clk 0:00:00]} 29. Nc5 {[%clk 0:00:00]}  Qf7 {[%clk 0:00:00]} 30. b3 {[%clk 0:00:00]}  b6 {[%clk 0:00:00]} 31. Na4 {[%clk 0:00:00]}  Qc7 {[%clk 0:00:00]} 32. Nb2 {[%clk 0:00:00]}  a6 {[%clk 0:00:00]} 33. Nc4 {[%clk 0:00:00]}  b5 {[%clk 0:00:00]} 34. Nd2 {[%clk 0:00:00]}  Rc8 {[%clk 0:00:00]} 35. c4 {[%clk 0:00:00]}  bxc4 {[%clk 0:00:00]} 36. Nxc4 {[%clk 0:00:00]}  Qb7 {[%clk 0:00:00]} 37. Kf2 {[%clk 0:00:00]}  Qa7 {[%clk 0:00:00]} 38. h4 {[%clk 0:00:00]}  Rcd8 {[%clk 0:00:00]} 39. Nc2 {[%clk 0:00:00]} 1-0


[Site "https://www.chess.com"]

[Event "Titled Tuesday Blitz August 16 Early 2022"]
[White "Skliarov, Viktor"]
[Black "Zia, Tahsin Tajwar"]
[WhiteFideId "14106736"]
[BlackFideId "10211888"]
[WhiteElo "2257"]
[BlackElo "1800"]
[Result "0-1"]
[Round "01"]
[TimeControl "180+2"]
[Date "2022.08.18"]
[WhiteClock "0:00:00"]
[BlackClock "0:00:00"]

1. e4 {[%clk 0:00:00]}  c6 {[%clk 0:00:00]} 2. d4 {[%clk 0:00:00]}  d5 {[%clk 0:00:00]} 3. e5 {[%clk 0:00:00]}  Bf5 {[%clk 0:00:00]} 4. Nf3 {[%clk 0:00:00]}  e6 {[%clk 0:00:00]} 5. Be2 {[%clk 0:00:00]}  Nd7 {[%clk 0:00:00]} 6. O-O {[%clk 0:00:00]}  h6 {[%clk 0:00:00]} 7. a4 {[%clk 0:00:00]}  g5 {[%clk 0:00:00]} 8. Ne1 {[%clk 0:00:00]}  Ne7 {[%clk 0:00:00]} 9. Nd3 {[%clk 0:00:00]}  Bg7 {[%clk 0:00:00]} 10. f4 {[%clk 0:00:00]}  f6 {[%clk 0:00:00]} 11. exf6 {[%clk 0:00:00]}  Bxf6 {[%clk 0:00:00]} 12. Bh5+ {[%clk 0:00:00]}  Kf8 {[%clk 0:00:00]} 13. Ne5 {[%clk 0:00:00]}  Kg7 {[%clk 0:00:00]} 14. Nc3 {[%clk 0:00:00]}  Bxe5 {[%clk 0:00:00]} 15. fxe5 {[%clk 0:00:00]}  Bg6 {[%clk 0:00:00]} 16. a5 {[%clk 0:00:00]}  Qe8 {[%clk 0:00:00]} 17. Bxg6 {[%clk 0:00:00]}  Qxg6 {[%clk 0:00:00]} 18. Be3 {[%clk 0:00:00]}  Raf8 {[%clk 0:00:00]} 19. Qe2 {[%clk 0:00:00]}  Nf5 {[%clk 0:00:00]} 20. Bf2 {[%clk 0:00:00]}  h5 {[%clk 0:00:00]} 21. a6 {[%clk 0:00:00]}  b6 {[%clk 0:00:00]} 22. Na2 {[%clk 0:00:00]}  Ne7 {[%clk 0:00:00]} 23. Nb4 {[%clk 0:00:00]}  c5 {[%clk 0:00:00]} 24. dxc5 {[%clk 0:00:00]}  bxc5 {[%clk 0:00:00]} 25. Nd3 {[%clk 0:00:00]}  Rc8 {[%clk 0:00:00]} 26. Ra5 {[%clk 0:00:00]}  Nc6 {[%clk 0:00:00]} 27. Rb5 {[%clk 0:00:00]}  c4 {[%clk 0:00:00]} 28. Rb7 {[%clk 0:00:00]}  cxd3 {[%clk 0:00:00]} 29. Rxd7+ {[%clk 0:00:00]}  Kh6 {[%clk 0:00:00]} 30. cxd3 {[%clk 0:00:00]}  Nb4 {[%clk 0:00:00]} 31. Be1 {[%clk 0:00:00]}  Rc2 {[%clk 0:00:00]} 32. Qe3 {[%clk 0:00:00]}  Nxd3 {[%clk 0:00:00]} 33. Rf6 {[%clk 0:00:00]}  Nf4 {[%clk 0:00:00]} 34. Rxg6+ {[%clk 0:00:00]}  Kxg6 {[%clk 0:00:00]} 35. g3 {[%clk 0:00:00]}  Re2 {[%clk 0:00:00]} 36. Qc1 {[%clk 0:00:00]}  Nh3+ {[%clk 0:00:00]} 37. Kf1 {[%clk 0:00:00]}  Re4 {[%clk 0:00:00]} 38. Qc6 {[%clk 0:00:00]}  Rf8+ {[%clk 0:00:00]} 39. Kg2 {[%clk 0:00:00]}  Re2+ {[%clk 0:00:00]} 40. Kxh3 {[%clk 0:00:00]}  g4+ {[%clk 0:00:00]} 41. Kh4 {[%clk 0:00:00]}  Rxh2# {[%clk 0:00:00]} 0-1


[Site "https://www.chess.com"]